fUSD/lending_fUSD_20251110
["ID","MTS","AMOUNT","RATE_DAILY","PERIOD"]
[393574775,1762805962044,-600.0,0.00027397,80]
[393574776,1762805962088,-1236.08,0.00027671,30]
[393574777,1762805962129,-151.85,0.00029207,30]
[393574778,1762805962170,-151.85,0.00030695,30]
[393574779,1762805962215,-600.0,0.00030822,80]
[393574780,1762805962261,-151.85,0.00032183,30]
[393574781,1762805962306,-500.0,0.0003225,120]
[393574782,1762805962352,-500.0,0.0003225,120]
[393574783,1762805962399,-500.0,0.0003225,120]
[393574784,1762805962446,-500.0,0.00032876,120]
[393574785,1762805962496,-500.0,0.00032876,120]
[393574786,1762805962542,-500.0,0.00032876,120]
[393574787,1762805962589,-500.0,0.00032876,120]
[393574788,1762805962634,-500.0,0.00032876,120]
[393574789,1762805962681,-500.0,0.00032876,120]
[393574790,1762805962728,-500.0,0.00032876,120]
[393574791,1762805962775,-500.0,0.00032876,120]
[393574792,1762805962821,-500.0,0.00032876,120]
[393574793,1762805962869,-500.0,0.00032876,120]
[393574794,1762805962920,-500.0,0.00032876,120]
[393574795,1762805962967,-500.0,0.00032876,120]
[393574796,1762805963017,-500.0,0.00032876,120]
[393574797,1762805963065,-500.0,0.00032876,120]
[393574798,1762805963112,-500.0,0.00032876,120]
[393574799,1762805963161,-500.0,0.00032876,120]
[393574800,1762805963210,-500.0,0.00032876,120]
[393574801,1762805963258,-500.0,0.00032876,120]
[393574802,1762805963307,-500.0,0.00032876,120]
[393574803,1762805963358,-500.0,0.00032876,120]
[393574804,1762805963406,-212.7,0.00032876,120]
[393574805,1762805963456,-2572.06,0.000331,30]
[393574806,1762805963504,-151.0,0.00033406,31]
[393574807,1762805963560,-189.318686,0.00033406,31]
[393574808,1762805963618,-151.0,0.00033406,31]
[393574809,1762805963668,-151.85,0.00033672,30]
[393574810,1762805963716,-2193.88,0.00034,60]
[393574811,1762805963767,-151.0,0.00034137,31]
[393574812,1762805963824,-151.0,0.00034137,31]
[393574813,1762805963886,-600.0,0.00034247,120]
[393574814,1762805963951,-1236.08,0.00034867,30]
[393574815,1762805964003,-151.85,0.0003516,60]
[393574816,1762805964058,-999.0,0.00035616,120]
[393574817,1762805964394,-999.0,0.00036438,120]
[393574818,1762805964455,-2572.06,0.000366,30]
[393574819,1762805964510,-151.85,0.00036648,60]
[393574820,1762805964565,-267.59,0.0003667,120]
[393574821,1762805964626,-153.46,0.00036916,60]
[393574822,1762805964687,-153.46,0.00037016,60]
[393574823,1762805964748,-153.46,0.00037116,60]
[393574824,1762805964806,-190.95621981,0.000372,120]
[393574825,1762805964859,-153.46,0.00037216,60]
[393574826,1762805964920,-999.0,0.0003726,120]
[393574827,1762805964984,-153.46,0.00037316,60]
[393574828,1762805965046,-153.46,0.00037416,60]
[393574829,1762805965113,-153.46,0.00037516,60]
[393574830,1762805965177,-153.46,0.00037616,60]
[393574831,1762805965239,-600.0,0.00037671,120]
[393574832,1762805965304,-153.46,0.00037716,60]
[393574833,1762805965364,-2572.06,0.000378,30]
[393574834,1762805965431,-153.46,0.00037816,60]
[393574835,1762805965501,-153.46,0.00037916,60]
[393574836,1762805965569,-46785.0,0.00038,35]
[393574837,1762805965638,-277.1334681,0.00038,120]
[393574838,1762805965707,-153.46,0.00038016,60]
[393574839,1762805965774,-22685.90052732,0.0003807,30]
[393574840,1762805965844,-999.0,0.00038082,120]
[393574841,1762805965909,-300.0,0.00038091,88]
[393574842,1762805965975,-455.61928232,0.000381,33]
[393574843,1762805966041,-153.46,0.00038116,60]
[393574844,1762805966105,-151.85,0.00038136,60]
[393574845,1762805966172,-153.46,0.00038216,60]
[393574846,1762805966235,-350.44,0.000383,120]
[393574847,1762805966298,-153.46,0.00038316,60]
[393574848,1762805966353,-944.56894104,0.00038356,120]
[393574849,1762805966406,-9477.40597512,0.000384,120]
[393574850,1762805966461,-153.46,0.00038416,120]
[393574851,1762805966512,-23765.83064379,0.000385,30]
[393574852,1762805966567,-153.46,0.00038516,120]
[393574853,1762805966623,-153.46,0.00038616,120]
[393574854,1762805966674,-781.4722802,0.00038628,120]
[393574855,1762805966729,-153.46,0.00038716,120]
[393574856,1762805966789,-85587.70970035,0.0003874,30]
[393574857,1762805966853,-28488.72248741,0.000388,30]
[393574858,1762805966915,-880.02878388,0.000388,60]
[393574859,1762805966973,-264.50759,0.00038811,120]
[393574860,1762805967033,-151.0,0.00038811,120]
[393574861,1762805967086,-153.46,0.00038816,120]
[393574862,1762805967138,-266.90100162,0.0003884,50]
[393574863,1762805967190,-283.533,0.00038888,30]
[393574864,1762805967242,-20305.0,0.000389,60]
[393574865,1762805967292,-999.0,0.00038904,120]
[393574866,1762805967343,-153.46,0.00038916,120]
[393574867,1762805967393,-2014.25975138,0.00039,30]
[393574868,1762805967443,-153.46,0.00039016,120]
[393574869,1762805967491,-153.47,0.00039116,120]
[393574870,1762805967538,-162.5842494,0.000393,120]
[393574871,1762805967585,-1673.02776087,0.000393,120]
[393574872,1762805967632,-530.69144623,0.000393,120]
[393574873,1762805967679,-408.13931106,0.000393,120]
[393574874,1762805967732,-50000.0,0.00039572,50]
[393574875,1762805967780,-50000.0,0.00039572,51]
[393574876,1762805967830,-50000.0,0.00039572,52]
[393574877,1762805967878,-50000.0,0.00039572,53]
[393574878,1762805967946,-151.0,0.00039573,120]
[393574879,1762805967991,-151.0,0.00039573,120]
[393574880,1762805968034,-151.0,0.00039573,120]
[393574881,1762805968077,-151.0,0.00039573,120]
[393574882,1762805968122,-151.0,0.00039573,120]
[393574883,1762805968165,-151.0,0.00039573,120]
[393574884,1762805968207,-151.0,0.00039573,120]
[393574885,1762805968248,-151.0,0.00039573,120]
[393574886,1762805968289,-151.0,0.00039573,120]
[393574887,1762805968333,-151.0,0.00039573,120]
[393574888,1762805968376,-151.0,0.00039573,120]
[393574889,1762805968419,-151.0,0.00039573,120]
[393574890,1762805968464,-151.0,0.00039573,120]
[393574891,1762805968507,-151.0,0.00039573,120]
[393574892,1762805968551,-151.0,0.00039573,120]
[393574893,1762805968593,-151.0,0.00039573,120]
[393574894,1762805968636,-151.0,0.00039573,120]
[393574895,1762805968677,-151.0,0.00039573,120]
[393574896,1762805968718,-151.0,0.00039573,120]
[393574897,1762805968760,-151.0,0.00039573,120]
[393574898,1762805968802,-151.0,0.00039573,120]
[393574899,1762805968844,-151.0,0.00039573,120]
[393574900,1762805968886,-151.0,0.00039573,120]
[393574901,1762805968930,-223.691884,0.00039573,120]
[393574902,1762805968974,-151.0,0.00039573,120]
[393574903,1762805969017,-151.0,0.00039573,120]
[393574904,1762805969061,-151.0,0.00039573,120]
[393574905,1762805969102,-151.0,0.00039573,120]
[393574906,1762805969146,-241.967552,0.00039573,120]
[393574907,1762805969189,-151.0,0.00039573,120]
[393574908,1762805969235,-151.0,0.00039573,120]
[393574909,1762805969282,-151.0,0.00039573,120]
[393574910,1762805969325,-151.0,0.00039573,120]
[393574911,1762805969367,-151.0,0.00039573,120]
[393574912,1762805969413,-151.0,0.00039573,120]
[393574913,1762805969457,-151.0,0.00039573,120]
[393574914,1762805969502,-151.0,0.00039573,120]
[393574915,1762805969546,-151.0,0.00039573,120]
[393574916,1762805969592,-151.0,0.00039573,120]
[393574917,1762805969635,-151.0,0.00039573,120]
[393574918,1762805969678,-162.922113,0.00039573,120]
[393574919,1762805969875,-151.0,0.00039573,120]
[393574920,1762805969920,-162.922113,0.00039573,120]
[393574921,1762805969965,-151.0,0.00039573,120]
[393574922,1762805970009,-162.922113,0.00039573,120]
[393574923,1762805970052,-170.02438,0.00039573,120]
[393574924,1762805970093,-162.922113,0.00039573,120]
[393574925,1762805970133,-162.922113,0.00039573,120]
[393574926,1762805970173,-162.922113,0.00039573,120]
[393574927,1762805970212,-162.922113,0.00039573,120]
[393574928,1762805970253,-162.922113,0.00039573,120]
[393574929,1762805970295,-162.922113,0.00039573,120]
[393574930,1762805970336,-162.922113,0.00039573,120]
[393574931,1762805970376,-162.922113,0.00039573,120]
[393574932,1762805970418,-162.922113,0.00039573,120]
[393574933,1762805970458,-162.922113,0.00039573,120]
[393574934,1762805970497,-162.922113,0.00039573,120]
[393574935,1762805970539,-162.922113,0.00039573,120]
[393574936,1762805970578,-162.922113,0.00039573,120]
[393574937,1762805970618,-162.922113,0.00039573,120]
[393574938,1762805970660,-162.922113,0.00039573,120]
[393574939,1762805970701,-162.922113,0.00039573,120]
[393574940,1762805970744,-162.922113,0.00039573,120]
[393574941,1762805970788,-151.0,0.00039573,120]
[393574942,1762805970832,-151.0,0.00039573,120]
[393574943,1762805970878,-151.0,0.00039573,120]
[393574944,1762805970922,-287.613544,0.00039573,120]
[393574945,1762805970965,-151.0,0.00039573,120]
[393574946,1762805971007,-151.0,0.00039573,120]
[393574947,1762805971048,-151.0,0.00039573,120]
[393574948,1762805971090,-151.0,0.00039573,120]
[393574949,1762805971130,-151.0,0.0003958,120]
[393574950,1762805971172,-209.10804559,0.00039584,120]
[393574951,1762805971216,-359.20307416,0.00039585,30]
[393574952,1762805971258,-269.40230563,0.00039585,30]
[393574953,1762805971299,-150.0,0.00039623,30]
[393574954,1762805971340,-439.42,0.00039623,120]
[393574955,1762805971383,-151.0,0.00039624,120]
[393574956,1762805971424,-151.0,0.00039624,120]
[393574957,1762805971466,-151.0,0.00039624,120]
[393574958,1762805971508,-210.218868,0.00039624,120]
[393574959,1762805971550,-151.0,0.00039624,120]
[393574960,1762805971591,-151.0,0.00039624,120]
[393574961,1762805971632,-151.0,0.00039624,120]
[393574962,1762805971672,-151.0,0.00039624,120]
[393574963,1762805971713,-151.0,0.00039624,120]
[393574964,1762805971754,-151.0,0.00039624,120]
[393574965,1762805971794,-151.0,0.00039624,120]
[393574966,1762805971834,-227.518854,0.00039624,120]
[393574967,1762805971876,-300.848909,0.00039624,120]
[393574968,1762805971915,-162.871069,0.00039624,120]
[393574969,1762805971956,-151.0,0.00039624,120]
[393574970,1762805971998,-207.353684,0.00039624,120]
[393574971,1762805972041,-151.0,0.00039624,120]
[393574972,1762805972083,-151.0,0.00039624,120]
[393574973,1762805972126,-151.0,0.00039624,120]
[393574974,1762805972168,-151.0,0.00039624,120]
[393574975,1762805972211,-151.0,0.00039624,120]
[393574976,1762805972254,-151.0,0.00039624,120]
[393574977,1762805972295,-173.443128,0.00039624,120]
[393574978,1762805972336,-151.0,0.00039624,120]
[393574979,1762805972379,-151.0,0.00039624,120]
[393574980,1762805972421,-194.280711,0.00039624,120]
[393574981,1762805972463,-151.0,0.00039624,120]
[393574982,1762805972504,-151.0,0.00039624,120]
[393574983,1762805972547,-151.0,0.00039624,120]
[393574984,1762805972587,-151.0,0.00039624,120]
[393574985,1762805972626,-151.0,0.00039624,120]
[393574986,1762805972664,-151.0,0.00039624,120]
[393574987,1762805972704,-287.15,0.00039624,120]
[393574988,1762805972744,-151.0,0.00039624,120]
[393574989,1762805972784,-151.0,0.00039624,120]
[393574990,1762805972824,-151.0,0.00039624,120]
[393574991,1762805972862,-151.0,0.00039624,120]
[393574992,1762805972903,-228.372808,0.00039624,30]
[393574993,1762805972941,-151.0,0.00039624,120]
[393574994,1762805972980,-228.372808,0.00039624,30]
[393574995,1762805973020,-151.0,0.00039624,120]
[393574996,1762805973064,-228.372808,0.00039624,30]
[393574997,1762805973102,-151.0,0.00039624,120]
[393574998,1762805973142,-228.372808,0.00039624,30]
[393574999,1762805973181,-151.0,0.00039624,120]
[393575000,1762805973221,-228.372808,0.00039624,30]
[393575001,1762805973262,-151.0,0.00039624,120]
[393575002,1762805973304,-228.372808,0.00039624,30]
[393575003,1762805973347,-151.0,0.00039624,120]
[393575004,1762805973390,-276.964938,0.00039624,120]
[393575005,1762805973434,-228.372808,0.00039624,30]
[393575006,1762805973476,-228.372808,0.00039624,30]
[393575007,1762805973518,-228.372808,0.00039624,30]
[393575008,1762805973556,-228.372808,0.00039624,30]
[393575009,1762805973596,-228.372808,0.00039624,30]
[393575010,1762805973636,-228.372808,0.00039624,30]
[393575011,1762805973676,-228.372808,0.00039624,30]
[393575012,1762805973717,-228.372808,0.00039624,30]
[393575013,1762805973758,-228.372808,0.00039624,30]
[393575014,1762805973800,-228.372808,0.00039624,30]
[393575015,1762805973840,-228.372808,0.00039624,30]
[393575016,1762805973880,-228.372808,0.00039624,30]
[393575017,1762805973920,-228.372808,0.00039624,30]
[393575018,1762805973960,-228.372812,0.00039624,30]
[393575019,1762805973998,-242.587273,0.00039624,120]
[393575020,1762805974037,-242.587273,0.00039624,120]
[393575021,1762805974074,-242.587273,0.00039624,120]
[393575022,1762805974111,-242.587273,0.00039624,120]
[393575023,1762805974283,-242.587273,0.00039624,120]
[393575024,1762805974327,-242.587273,0.00039624,120]
[393575025,1762805974370,-242.587273,0.00039624,120]
[393575026,1762805974419,-242.587273,0.00039624,120]
[393575027,1762805974465,-242.587273,0.00039624,120]
[393575028,1762805974510,-242.587273,0.00039624,120]
[393575029,1762805974552,-242.587273,0.00039624,120]
[393575030,1762805974597,-242.587273,0.00039624,120]
[393575031,1762805974647,-242.587273,0.00039624,120]
[393575032,1762805974692,-242.587273,0.00039624,120]
[393575033,1762805974736,-242.587273,0.00039624,120]
[393575034,1762805974780,-242.587273,0.00039624,120]
[393575035,1762805974822,-242.587273,0.00039624,120]
[393575036,1762805974864,-242.587273,0.00039624,120]
[393575037,1762805974908,-242.587273,0.00039624,120]
[393575038,1762805974951,-242.587272,0.00039624,120]
[393575039,1762805974995,-151.0,0.00039624,120]
[393575040,1762805975042,-151.0,0.00039624,120]
[393575041,1762805975091,-151.0,0.00039624,120]
[393575042,1762805975135,-151.0,0.00039624,120]
[393575043,1762805975180,-151.0,0.00039624,120]
[393575044,1762805975226,-151.0,0.00039624,120]
[393575045,1762805975273,-151.0,0.00039624,120]
[393575046,1762805975321,-151.0,0.00039624,120]
[393575047,1762805975367,-151.0,0.00039624,120]
[393575048,1762805975413,-151.0,0.00039624,120]
[393575049,1762805975456,-151.0,0.00039624,120]
[393575050,1762805975499,-151.0,0.00039624,120]
[393575051,1762805975542,-151.0,0.00039624,120]
[393575052,1762805975584,-270.919148,0.00039624,120]
[393575053,1762805975627,-151.0,0.00039624,120]
[393575054,1762805975668,-151.0,0.00039624,120]
[393575055,1762805975711,-151.0,0.00039624,120]
[393575056,1762805975753,-170.76434,0.00039624,120]
[393575057,1762805975795,-151.0,0.00039624,120]
[393575058,1762805975839,-151.0,0.00039624,120]
[393575059,1762805975884,-151.0,0.00039624,120]
[393575060,1762805975930,-151.0,0.00039624,120]
[393575061,1762805975975,-151.0,0.00039624,120]
[393575062,1762805976021,-151.0,0.00039624,120]
[393575063,1762805976067,-151.0,0.00039624,120]
[393575064,1762805976112,-151.0,0.00039624,120]
[393575065,1762805976155,-151.0,0.00039624,120]
[393575066,1762805976198,-151.0,0.00039624,120]
[393575067,1762805976245,-151.0,0.00039624,120]
[393575068,1762805976290,-151.0,0.00039624,120]
[393575069,1762805976336,-151.0,0.00039624,120]
[393575070,1762805976383,-151.0,0.00039624,120]
[393575071,1762805976429,-151.0,0.00039624,120]
[393575072,1762805976474,-151.0,0.00039624,120]
[393575073,1762805976519,-151.0,0.00039624,120]
[393575074,1762805976563,-151.0,0.00039624,120]
[393575075,1762805976608,-151.0,0.00039624,120]
[393575076,1762805976650,-151.0,0.00039624,120]
[393575077,1762805976693,-151.0,0.00039624,120]
[393575078,1762805976735,-202.306123,0.00039624,120]
[393575079,1762805976776,-151.0,0.00039624,120]
[393575080,1762805976819,-151.0,0.00039624,120]
[393575081,1762805976862,-151.0,0.00039624,120]
[393575082,1762805976903,-164.120892,0.00039624,120]
[393575083,1762805976946,-151.0,0.00039624,120]
[393575084,1762805976988,-151.0,0.00039624,120]
[393575085,1762805977030,-151.0,0.00039624,120]
[393575086,1762805977072,-151.0,0.00039624,120]
[393575087,1762805977115,-151.0,0.00039624,120]
[393575088,1762805977172,-151.0,0.00039624,120]
[393575089,1762805977218,-151.0,0.00039624,120]
[393575090,1762805977260,-151.0,0.00039624,120]
[393575091,1762805977303,-151.0,0.00039624,120]
[393575092,1762805977344,-151.0,0.00039624,120]
[393575093,1762805977387,-151.0,0.00039624,120]
[393575094,1762805977429,-151.0,0.00039624,120]
[393575095,1762805977471,-151.0,0.00039624,120]
[393575096,1762805977513,-151.0,0.00039624,120]
[393575097,1762805977555,-151.0,0.00039624,120]
[393575098,1762805977597,-151.0,0.00039624,120]
[393575099,1762805977640,-151.0,0.00039624,120]
[393575100,1762805977683,-151.0,0.00039624,120]
[393575101,1762805977726,-151.0,0.00039624,120]
[393575102,1762805977767,-151.0,0.00039624,120]
[393575103,1762805977810,-151.0,0.00039624,30]
[393575104,1762805977854,-151.0,0.00039624,30]
[393575105,1762805977899,-151.0,0.00039624,120]
[393575106,1762805977942,-207.172708,0.00039624,120]
[393575107,1762805977984,-151.0,0.00039624,120]
[393575108,1762805978029,-151.0,0.00039624,120]
[393575109,1762805978075,-151.0,0.00039624,30]
[393575110,1762805978119,-151.0,0.00039624,120]
[393575111,1762805978165,-151.0,0.00039624,120]
[393575112,1762805978211,-151.0,0.00039624,120]
[393575113,1762805978257,-151.0,0.00039624,120]
[393575114,1762805978302,-151.0,0.00039624,30]
[393575115,1762805978349,-151.0,0.00039624,120]
[393575116,1762805978395,-151.0,0.00039624,120]
[393575117,1762805978442,-151.0,0.00039624,120]
[393575118,1762805978488,-151.0,0.00039624,30]
[393575119,1762805978538,-151.0,0.00039624,120]
[393575120,1762805978581,-151.0,0.00039624,120]
[393575121,1762805978628,-300.030754,0.00039624,30]
[393575122,1762805978672,-246.473484,0.00039624,120]
[393575123,1762805978715,-151.0,0.00039624,120]
[393575124,1762805978756,-151.0,0.00039624,120]
[393575125,1762805978800,-184.889364,0.00039624,120]
[393575126,1762805978844,-151.0,0.00039624,120]
[393575127,1762805979038,-151.0,0.00039624,120]
[393575128,1762805979087,-151.0,0.00039624,120]
[393575129,1762805979136,-151.0,0.00039624,120]
[393575130,1762805979184,-151.0,0.00039624,120]
[393575131,1762805979233,-151.0,0.00039624,120]
[393575132,1762805979287,-242.6302,0.00039624,120]
[393575133,1762805979334,-151.0,0.00039624,120]
[393575134,1762805979381,-151.0,0.00039624,120]
[393575135,1762805979428,-151.0,0.00039624,120]
[393575136,1762805979485,-151.0,0.00039624,120]
[393575137,1762805979534,-151.0,0.00039624,120]
[393575138,1762805979579,-284.388516,0.00039624,120]
[393575139,1762805979624,-151.0,0.00039624,120]
[393575140,1762805979669,-252.876825,0.00039624,120]
[393575141,1762805979713,-151.0,0.00039624,120]
[393575142,1762805979755,-151.0,0.00039624,120]
[393575143,1762805979798,-151.0,0.00039624,120]
[393575144,1762805979841,-151.0,0.00039624,120]
[393575145,1762805979886,-236.50012,0.00039624,120]
[393575146,1762805979932,-151.85,0.00039624,60]
[393575147,1762805979975,-151.0,0.00039624,120]
[393575148,1762805980019,-151.0,0.00039624,120]
[393575149,1762805980065,-151.0,0.00039624,120]
[393575150,1762805980110,-151.0,0.00039624,120]
[393575151,1762805980156,-151.0,0.00039624,120]
[393575152,1762805980200,-151.0,0.00039624,120]
[393575153,1762805980251,-251.401478,0.00039624,120]
[393575154,1762805980295,-151.0,0.00039624,120]
[393575155,1762805980339,-215.19300343,0.00039624,31]
[393575156,1762805980382,-10000.0,0.00039624,30]
[393575157,1762805980425,-1021.27,0.00039627,120]
[393575158,1762805980467,-1021.27,0.00039627,120]
[393575159,1762805980511,-1021.27,0.00039627,120]
[393575160,1762805980554,-1021.27,0.00039629,120]
[393575161,1762805980598,-1021.27,0.00039629,120]
[393575162,1762805980638,-1021.27,0.0003963,120]
[393575163,1762805980677,-1021.27,0.0003963,120]
[393575164,1762805980718,-1021.27,0.0003963,120]
[393575165,1762805980760,-1021.27,0.0003963,120]
[393575166,1762805980803,-1021.27886383,0.0003963,120]
[393575167,1762805980848,-540.84,0.00039635,120]
[393575168,1762805980891,-200.62837306,0.00039648,120]
[393575169,1762805980935,-222.71783792,0.00039648,120]
[393575170,1762805980981,-171.97161526,0.00039649,120]
[393575171,1762805981027,-467.61772559,0.00039653,120]
[393575172,1762805981076,-152.62,0.00039684,120]
[393575173,1762805981125,-150.35,0.00039698,120]
[393575174,1762805981175,-999.0,0.00039726,120]
[393575175,1762805981223,-152.62,0.00039784,120]
[393575176,1762805981271,-150.35,0.00039798,120]
[393575177,1762805981317,-6581.64,0.000398,60]
[393575178,1762805981364,-1216.16140457,0.0003988,120]
[393575179,1762805981411,-152.62,0.00039884,120]
[393575180,1762805981457,-150.35,0.00039898,120]
[393575181,1762805981500,-5000.0,0.000399,120]
[393575182,1762805981543,-150.0,0.00039908,120]
[393575183,1762805981587,-152.62,0.00039984,120]
[393575184,1762805981627,-445.0,0.00039986,90]
[393575185,1762805981669,-150.35,0.00039998,120]
[393575186,1762805981712,-441.39862885,0.00039999,31]
[393575187,1762805981758,-400.53896046,0.00039999,31]
[393575188,1762805981799,-473.26751163,0.00039999,31]
[393575189,1762805981841,-491.32439772,0.00039999,31]
[393575190,1762805981884,-500.0,0.00039999,31]
[393575191,1762805981927,-500.0,0.00039999,31]
[393575192,1762805981972,-500.0,0.00039999,31]
[393575193,1762805982016,-362.07982196,0.00039999,31]
[393575194,1762805982065,-500.0,0.00039999,31]
[393575195,1762805982113,-329.90807122,0.00039999,31]
[393575196,1762805982163,-500.0,0.00039999,31]
[393575197,1762805982213,-250.0,0.00039999,31]
[393575198,1762805982259,-50000.0,0.0004,50]
[393575199,1762805982303,-907.99537877,0.0004,120]
[393575200,1762805982346,-1900.64111389,0.0004,120]
[393575201,1762805982387,-181.23747044,0.0004,120]
[393575202,1762805982427,-712.82505339,0.0004,120]
[393575203,1762805982468,-1498.21150556,0.0004,120]
[393575204,1762805982507,-249.39738673,0.0004,120]
[393575205,1762805982547,-250.01644342,0.0004,120]
[393575206,1762805982585,-1663.33959372,0.0004,30]
[393575207,1762805982625,-366.35305382,0.0004,30]
[393575208,1762805982663,-177.69939454,0.0004,120]
[393575209,1762805982700,-477.50558027,0.0004,120]
[393575210,1762805982739,-200.0,0.0004,120]
[393575211,1762805982777,-500.00000001,0.0004,120]
[393575212,1762805982814,-294.0109,0.0004,120]
[393575213,1762805982852,-200.2,0.0004,30]
[393575214,1762805982888,-477.12749073,0.0004,30]
[393575215,1762805982925,-425.95440436,0.0004,30]
[393575216,1762805982963,-433.32779878,0.0004,120]
[393575217,1762805983000,-261.32528921,0.0004,120]
[393575218,1762805983038,-205.38409608,0.0004,30]
[393575219,1762805983076,-366.18668053,0.0004,30]
[393575220,1762805983114,-291.5678362,0.0004,100]
[393575221,1762805983154,-250.99340903,0.0004,30]
[393575222,1762805983191,-1038.72266342,0.0004,120]
[393575223,1762805983232,-200.0,0.0004,120]
[393575224,1762805983270,-150.0,0.0004,60]
[393575225,1762805983309,-2255.43528288,0.0004,120]
[393575226,1762805983347,-251.05,0.0004,120]
[393575227,1762805983386,-485.1,0.0004,120]
[393575228,1762805983425,-537.11,0.0004,120]
[393575229,1762805983463,-808.43,0.0004,120]
[393575230,1762805983502,-1233.18,0.0004,120]
[393575231,1762805983690,-152.62,0.00040084,120]
[393575232,1762805983734,-150.67805106,0.00040098,120]
[393575233,1762805983776,-152.7535769,0.00040184,120]
[393575234,1762805983820,-150.0,0.00040204,120]
[393575235,1762805983865,-150.0,0.00040354,120]
[393575236,1762805983907,-162.5842494,0.000404,120]
[393575237,1762805983949,-1673.02776087,0.000404,120]
[393575238,1762805983990,-530.69144623,0.000404,120]
[393575239,1762805984032,-408.13931106,0.000404,120]
[393575240,1762805984074,-222.44773578,0.00040431,120]
[393575241,1762805984114,-999.0,0.00040547,120]
[393575242,1762805984153,-200.62837306,0.00040561,120]
[393575243,1762805984195,-762.06141368,0.000408,120]
[393575244,1762805984239,-471.65013797,0.000408,60]
[393575245,1762805984285,-5024.61014375,0.000409,120]
[393575246,1762805984329,-150.0,0.00040918,120]
[393575247,1762805984372,-211.0,0.0004093,30]
[393575248,1762805984416,-1640.71056413,0.00041,30]
[393575249,1762805984459,-1942.10152337,0.00041,120]
[393575250,1762805984501,-1032.86330912,0.00041,120]
[393575251,1762805984542,-450.09098014,0.00041,30]
[393575252,1762805984584,-774.07,0.00041096,120]
[393575253,1762805984625,-1822.47,0.00041096,120]
[393575254,1762805984667,-600.0,0.00041096,120]
[393575255,1762805984708,-2772.18,0.000411,30]
[393575256,1762805984749,-222.71783791,0.0004111,120]
[393575257,1762805984790,-1001.23502218,0.00041369,120]
[393575258,1762805984831,-2572.06,0.000414,30]
[393575259,1762805984872,-200.62837306,0.00041475,120]
[393575260,1762805984915,-222.71783792,0.00041475,120]
[393575261,1762805984959,-160.85237163,0.000415,90]
[393575262,1762805985002,-1343.68,0.000416,120]
[393575263,1762805985048,-1343.68,0.000416,120]
[393575264,1762805985091,-1343.68,0.000416,120]
[393575265,1762805985135,-162.5842494,0.000417,120]
[393575266,1762805985175,-1673.02776087,0.000417,120]
[393575267,1762805985216,-530.69144623,0.000417,120]
[393575268,1762805985258,-408.13931106,0.000417,120]
[393575269,1762805985299,-177.04,0.00041796,30]
[393575270,1762805985341,-222.44773578,0.00041996,120]
[393575271,1762805985383,-496.65862371,0.00041999,120]
[393575272,1762805985423,-407.21411862,0.00042,120]
[393575273,1762805985464,-315.81201583,0.00042,120]
[393575274,1762805985503,-749.2629142,0.00042,30]